[Event "Titled Tuesday Blitz July 25 Late 2023"]
[White "arturdailima"]
[Black "Bazzano, Sebastian"]
[BlackFideId "104566"]
[WhiteElo "2334"]
[BlackElo "2211"]
[Result "1-0"]
[Round "6"]
[TimeControl "180+2"]
[Date "2023.07.25"]
[WhiteClock "0:00:18"]
[BlackClock "0:00:00"]
[Board "154"]

1. e4 {[%clk 0:03:00]}  e6 {[%clk 0:02:59]} 2. d4 {[%clk 0:03:00]}  d5 {[%clk 0:02:59]} 3. Nd2 {[%clk 0:03:01]}  dxe4 {[%clk 0:02:59]} 4. Nxe4 {[%clk 0:03:02]}  Bd7 {[%clk 0:02:59]} 5. Nf3 {[%clk 0:03:01]}  Bc6 {[%clk 0:03:00]} 6. Bd3 {[%clk 0:03:02]}  Bxe4 {[%clk 0:03:00]} 7. Bxe4 {[%clk 0:03:02]}  c6 {[%clk 0:03:00]} 8. O-O {[%clk 0:03:01]}  Nf6 {[%clk 0:03:00]} 9. Bd3 {[%clk 0:03:00]}  Bd6 {[%clk 0:02:58]} 10. Bg5 {[%clk 0:02:59]}  Nbd7 {[%clk 0:02:58]} 11. c3 {[%clk 0:02:55]}  O-O {[%clk 0:02:56]} 12. Re1 {[%clk 0:02:56]}  Qc7 {[%clk 0:02:56]} 13. h3 {[%clk 0:02:50]}  Bf4 {[%clk 0:02:54]} 14. Bh4 {[%clk 0:02:45]}  Rfe8 {[%clk 0:02:54]} 15. Qc2 {[%clk 0:02:20]}  g6 {[%clk 0:02:53]} 16. a4 {[%clk 0:02:13]}  Bh6 {[%clk 0:02:49]} 17. a5 {[%clk 0:02:08]}  a6 {[%clk 0:02:49]} 18. b4 {[%clk 0:02:05]}  Bg7 {[%clk 0:02:33]} 19. Bg3 {[%clk 0:02:05]}  Qd8 {[%clk 0:02:25]} 20. h4 {[%clk 0:02:00]}  Nh5 {[%clk 0:02:25]} 21. Bh2 {[%clk 0:01:53]}  Qf6 {[%clk 0:02:23]} 22. Re4 {[%clk 0:01:41]}  Qd8 {[%clk 0:02:07]} 23. Rae1 {[%clk 0:01:38]}  Nhf6 {[%clk 0:01:54]} 24. R4e2 {[%clk 0:01:38]}  Nd5 {[%clk 0:01:53]} 25. Qb3 {[%clk 0:01:30]}  Qf6 {[%clk 0:01:43]} 26. Re4 {[%clk 0:01:25]}  Qd8 {[%clk 0:01:36]} 27. c4 {[%clk 0:01:23]}  N5f6 {[%clk 0:01:30]} 28. R4e2 {[%clk 0:01:24]}  Nh5 {[%clk 0:01:29]} 29. g4 {[%clk 0:01:10]}  Nhf6 {[%clk 0:01:28]} 30. g5 {[%clk 0:01:11]}  Nh5 {[%clk 0:01:26]} 31. Kg2 {[%clk 0:01:12]}  Rc8 {[%clk 0:01:25]} 32. Bc2 {[%clk 0:01:03]}  Nf8 {[%clk 0:01:21]} 33. Rd1 {[%clk 0:01:00]}  h6 {[%clk 0:01:14]} 34. Be5 {[%clk 0:00:51]}  hxg5 {[%clk 0:01:05]} 35. hxg5 {[%clk 0:00:45]}  Qe7 {[%clk 0:00:51]} 36. Re4 {[%clk 0:00:39]}  Nd7 {[%clk 0:00:44]} 37. Bxg7 {[%clk 0:00:38]}  Nxg7 {[%clk 0:00:39]} 38. Rde1 {[%clk 0:00:39]}  Qd6 {[%clk 0:00:31]} 39. Ne5 {[%clk 0:00:31]}  Nxe5 {[%clk 0:00:29]} 40. dxe5 {[%clk 0:00:32]}  Qe7 {[%clk 0:00:29]} 41. f4 {[%clk 0:00:31]}  Red8 {[%clk 0:00:29]} 42. Rh1 {[%clk 0:00:28]}  Rd2+ {[%clk 0:00:26]} 43. Kf3 {[%clk 0:00:28]}  Rcd8 {[%clk 0:00:24]} 44. Re2 {[%clk 0:00:25]}  Rxe2 {[%clk 0:00:22]} 45. Kxe2 {[%clk 0:00:26]}  Nf5 {[%clk 0:00:20]} 46. Qh3 {[%clk 0:00:18]}  Nd4+ {[%clk 0:00:00]} 47. Kf2 {[%clk 0:00:18]} 1-0


[Site "https://www.chess.com"]

[Event "Titled Tuesday Blitz July 25 Late 2023"]
[White "Winslow, Elliott"]
[Black "Kostiukov, Alexandr"]
[WhiteFideId "2002523"]
[BlackFideId "14108100"]
[WhiteElo "2178"]
[BlackElo "2330"]
[Result "1-0"]
[Round "6"]
[TimeControl "180+2"]
[Date "2023.07.25"]
[WhiteClock "0:01:06"]
[BlackClock "0:00:00"]
[Board "155"]

1. e4 {[%clk 0:02:57]}  c5 {[%clk 0:02:54]} 2. Nf3 {[%clk 0:02:56]}  g6 {[%clk 0:02:52]} 3. c3 {[%clk 0:02:53]}  Bg7 {[%clk 0:02:51]} 4. d4 {[%clk 0:02:52]}  cxd4 {[%clk 0:02:52]} 5. cxd4 {[%clk 0:02:52]}  d5 {[%clk 0:02:52]} 6. e5 {[%clk 0:02:51]}  Nh6 {[%clk 0:02:50]} 7. Be2 {[%clk 0:02:49]}  O-O {[%clk 0:02:49]} 8. h3 {[%clk 0:02:48]}  Nc6 {[%clk 0:02:49]} 9. Nc3 {[%clk 0:02:47]}  f6 {[%clk 0:02:49]} 10. exf6 {[%clk 0:02:45]}  exf6 {[%clk 0:02:49]} 11. O-O {[%clk 0:02:44]}  Be6 {[%clk 0:02:49]} 12. Bf4 {[%clk 0:02:42]}  g5 {[%clk 0:02:49]} 13. Bh2 {[%clk 0:02:37]}  Nf5 {[%clk 0:02:46]} 14. Qd2 {[%clk 0:02:35]}  Bf7 {[%clk 0:02:37]} 15. Rad1 {[%clk 0:02:32]}  h5 {[%clk 0:02:36]} 16. g4 {[%clk 0:02:27]}  hxg4 {[%clk 0:02:34]} 17. hxg4 {[%clk 0:02:26]}  Nd6 {[%clk 0:02:34]} 18. Ne1 {[%clk 0:02:12]}  f5 {[%clk 0:02:18]} 19. gxf5 {[%clk 0:02:03]}  Nxf5 {[%clk 0:02:17]} 20. Nf3 {[%clk 0:01:58]}  g4 {[%clk 0:01:51]} 21. Ne5 {[%clk 0:01:55]}  Nfxd4 {[%clk 0:01:04]} 22. Nxc6 {[%clk 0:01:46]}  bxc6 {[%clk 0:00:54]} 23. Bxg4 {[%clk 0:01:43]}  Qh4 {[%clk 0:00:48]} 24. Qf4 {[%clk 0:01:34]}  Qh8 {[%clk 0:00:03]} 25. Qg5 {[%clk 0:01:23]}  Ne6 {[%clk 0:00:01]} 26. Bxe6 {[%clk 0:01:14]}  Bxe6 {[%clk 0:00:02]} 27. Rfe1 {[%clk 0:01:12]}  Rae8 {[%clk 0:00:00]} 28. Be5 {[%clk 0:01:06]} 1-0


[Site "https://www.chess.com"]

[Event "Titled Tuesday Blitz July 25 Late 2023"]
[White "Kujawski, Adam"]
[Black "Oliveira, Tiago Batista"]
[WhiteFideId "1100920"]
[BlackFideId "2108291"]
[WhiteElo "2326"]
[BlackElo "2162"]
[Result "1-0"]
[Round "6"]
[TimeControl "180+2"]
[Date "2023.07.25"]
[WhiteClock "0:00:38"]
[BlackClock "0:00:00"]
[Board "156"]

1. e4 {[%clk 0:02:56]}  e5 {[%clk 0:02:59]} 2. Nf3 {[%clk 0:02:56]}  Nc6 {[%clk 0:02:59]} 3. Bb5 {[%clk 0:02:56]}  a6 {[%clk 0:02:58]} 4. Ba4 {[%clk 0:02:56]}  Nf6 {[%clk 0:02:59]} 5. O-O {[%clk 0:02:56]}  Nxe4 {[%clk 0:02:59]} 6. d4 {[%clk 0:02:56]}  b5 {[%clk 0:02:59]} 7. Bb3 {[%clk 0:02:56]}  d5 {[%clk 0:02:58]} 8. dxe5 {[%clk 0:02:56]}  Be6 {[%clk 0:02:58]} 9. Nbd2 {[%clk 0:02:56]}  Bc5 {[%clk 0:02:57]} 10. Qe2 {[%clk 0:02:55]}  Bf5 {[%clk 0:02:56]} 11. Nxe4 {[%clk 0:01:03]}  dxe4 {[%clk 0:02:55]} 12. Ng5 {[%clk 0:00:54]}  Nxe5 {[%clk 0:02:22]} 13. Nxe4 {[%clk 0:00:49]}  Bxe4 {[%clk 0:00:35]} 14. Qxe4 {[%clk 0:00:48]}  Bd6 {[%clk 0:00:06]} 15. f4 {[%clk 0:00:45]}  f5 {[%clk 0:00:00]} 16. Qe2 {[%clk 0:00:38]} 1-0


[Site "https://www.chess.com"]

[Event "Titled Tuesday Blitz July 25 Late 2023"]
[White "Awoki, Daniel Teidi"]
[Black "Tsukerman, Julia"]
[WhiteFideId "2100827"]
[BlackFideId "2621649"]
[WhiteElo "2321"]
[BlackElo "2119"]
[Result "1-0"]
[Round "6"]
[TimeControl "180+2"]
[Date "2023.07.25"]
[WhiteClock "0:00:15"]
[BlackClock "0:00:00"]
[Board "157"]

1. e4 {[%clk 0:02:53]}  c5 {[%clk 0:02:59]} 2. Nf3 {[%clk 0:02:53]}  d6 {[%clk 0:02:58]} 3. Bb5+ {[%clk 0:02:52]}  Nd7 {[%clk 0:02:57]} 4. d4 {[%clk 0:02:51]}  cxd4 {[%clk 0:02:57]} 5. Qxd4 {[%clk 0:02:52]}  e5 {[%clk 0:02:48]} 6. Qd3 {[%clk 0:02:31]}  a6 {[%clk 0:02:42]} 7. Bxd7+ {[%clk 0:02:31]}  Bxd7 {[%clk 0:02:29]} 8. c4 {[%clk 0:02:32]}  Nf6 {[%clk 0:02:23]} 9. Bg5 {[%clk 0:02:30]}  h6 {[%clk 0:02:20]} 10. Bxf6 {[%clk 0:02:30]}  Qxf6 {[%clk 0:02:20]} 11. O-O {[%clk 0:02:25]}  Be7 {[%clk 0:02:05]} 12. Nc3 {[%clk 0:02:25]}  Bc6 {[%clk 0:01:59]} 13. Nd5 {[%clk 0:02:23]}  Bxd5 {[%clk 0:01:58]} 14. Qxd5 {[%clk 0:02:24]}  Rb8 {[%clk 0:01:57]} 15. a4 {[%clk 0:02:23]}  Qe6 {[%clk 0:01:53]} 16. Rfd1 {[%clk 0:02:19]}  Qxd5 {[%clk 0:01:51]} 17. Rxd5 {[%clk 0:02:20]}  O-O {[%clk 0:01:49]} 18. Ne1 {[%clk 0:02:18]}  Rbc8 {[%clk 0:01:47]} 19. b3 {[%clk 0:02:17]}  Rc6 {[%clk 0:01:41]} 20. Nc2 {[%clk 0:02:11]}  g6 {[%clk 0:01:32]} 21. a5 {[%clk 0:02:04]}  Rc5 {[%clk 0:01:23]} 22. Ne3 {[%clk 0:01:55]}  Rfc8 {[%clk 0:01:16]} 23. b4 {[%clk 0:01:47]}  R5c6 {[%clk 0:01:11]} 24. Rad1 {[%clk 0:01:28]}  Kf8 {[%clk 0:01:06]} 25. g3 {[%clk 0:01:24]}  Ke8 {[%clk 0:00:52]} 26. h4 {[%clk 0:01:22]}  h5 {[%clk 0:00:51]} 27. Kf1 {[%clk 0:01:21]}  b6 {[%clk 0:00:38]} 28. axb6 {[%clk 0:01:15]}  Rxb6 {[%clk 0:00:38]} 29. Rb1 {[%clk 0:01:15]}  Rcb8 {[%clk 0:00:33]} 30. Nc2 {[%clk 0:01:00]}  Bf8 {[%clk 0:00:29]} 31. Ra5 {[%clk 0:00:57]}  Rc6 {[%clk 0:00:19]} 32. Ne3 {[%clk 0:00:56]}  Be7 {[%clk 0:00:17]} 33. Ke2 {[%clk 0:00:52]}  Bd8 {[%clk 0:00:17]} 34. Ra4 {[%clk 0:00:44]}  Rcb6 {[%clk 0:00:13]} 35. Nd5 {[%clk 0:00:42]}  Rc6 {[%clk 0:00:12]} 36. Kd3 {[%clk 0:00:40]}  Kd7 {[%clk 0:00:12]} 37. Rba1 {[%clk 0:00:36]}  Rbc8 {[%clk 0:00:11]} 38. Ne3 {[%clk 0:00:22]}  Ra8 {[%clk 0:00:06]} 39. b5 {[%clk 0:00:22]}  Rb6 {[%clk 0:00:04]} 40. Rxa6 {[%clk 0:00:22]}  Raxa6 {[%clk 0:00:03]} 41. bxa6 {[%clk 0:00:22]}  Rb8 {[%clk 0:00:02]} 42. Nd5 {[%clk 0:00:21]}  Kc6 {[%clk 0:00:01]} 43. Kc3 {[%clk 0:00:19]}  Ra8 {[%clk 0:00:02]} 44. Kb4 {[%clk 0:00:18]}  Bb6 {[%clk 0:00:01]} 45. Ra2 {[%clk 0:00:15]}  Bc5+ {[%clk 0:00:00]} 46. Kc3 {[%clk 0:00:15]} 1-0


[Site "https://www.chess.com"]

[Event "Titled Tuesday Blitz July 25 Late 2023"]
[White "Winkels, Marcel"]
[Black "Manon-og, Ramon Jr."]
[WhiteFideId "1003887"]
[BlackFideId "5200776"]
[WhiteElo "2058"]
[BlackElo "2314"]
[Result "1-0"]
[Round "6"]
[TimeControl "180+2"]
[Date "2023.07.25"]
[WhiteClock "0:01:36"]
[BlackClock "0:00:39"]
[Board "159"]

1. e4 {[%clk 0:03:00]}  c5 {[%clk 0:02:59]} 2. Nf3 {[%clk 0:02:56]}  d6 {[%clk 0:02:59]} 3. d4 {[%clk 0:02:56]}  cxd4 {[%clk 0:03:00]} 4. Nxd4 {[%clk 0:02:56]}  Nf6 {[%clk 0:03:00]} 5. Nc3 {[%clk 0:02:56]}  a6 {[%clk 0:03:01]} 6. h3 {[%clk 0:02:57]}  e5 {[%clk 0:02:59]} 7. Nf3 {[%clk 0:02:56]}  h5 {[%clk 0:02:51]} 8. Rg1 {[%clk 0:02:54]}  Nc6 {[%clk 0:02:44]} 9. Be3 {[%clk 0:02:52]}  Be6 {[%clk 0:02:34]} 10. Ng5 {[%clk 0:02:51]}  Qd7 {[%clk 0:02:13]} 11. Qd2 {[%clk 0:02:33]}  Be7 {[%clk 0:01:59]} 12. O-O-O {[%clk 0:02:30]}  O-O {[%clk 0:01:48]} 13. Nxe6 {[%clk 0:02:29]}  fxe6 {[%clk 0:01:44]} 14. g4 {[%clk 0:02:28]}  h4 {[%clk 0:01:43]} 15. Be2 {[%clk 0:02:19]}  b5 {[%clk 0:01:32]} 16. g5 {[%clk 0:02:06]}  Ne8 {[%clk 0:01:27]} 17. Bg4 {[%clk 0:01:51]}  Nc7 {[%clk 0:01:17]} 18. Nd5 {[%clk 0:01:48]}  Nxd5 {[%clk 0:00:46]} 19. exd5 {[%clk 0:01:45]}  Nd4 {[%clk 0:00:46]} 20. Bxd4 {[%clk 0:01:37]}  exd4 {[%clk 0:00:39]} 21. Bxe6+ {[%clk 0:01:36]} 1-0


[Site "https://www.chess.com"]

[Event "Titled Tuesday Blitz July 25 Late 2023"]
[White "rionelG"]
[Black "Navyblue1"]
[WhiteElo "2299"]
[BlackElo "1962"]
[Result "1-0"]
[Round "6"]
[TimeControl "180+2"]
[Date "2023.07.25"]
[WhiteClock "0:01:32"]
[BlackClock "0:00:01"]
[Board "160"]

1. e4 {[%clk 0:03:00]}  c5 {[%clk 0:02:46]} 2. g3 {[%clk 0:03:00]}  d5 {[%clk 0:02:42]} 3. exd5 {[%clk 0:03:01]}  Qxd5 {[%clk 0:02:39]} 4. Nf3 {[%clk 0:03:01]}  Bg4 {[%clk 0:02:31]} 5. Bg2 {[%clk 0:03:01]}  Nc6 {[%clk 0:02:31]} 6. h3 {[%clk 0:02:57]}  Bh5 {[%clk 0:02:24]} 7. O-O {[%clk 0:02:53]}  e6 {[%clk 0:02:23]} 8. Nc3 {[%clk 0:02:50]}  Qd7 {[%clk 0:02:20]} 9. Re1 {[%clk 0:02:49]}  Be7 {[%clk 0:02:16]} 10. d3 {[%clk 0:02:48]}  Nf6 {[%clk 0:02:09]} 11. Bf4 {[%clk 0:02:37]}  O-O {[%clk 0:02:00]} 12. g4 {[%clk 0:02:33]}  Bg6 {[%clk 0:01:55]} 13. Ne5 {[%clk 0:02:34]}  Nxe5 {[%clk 0:01:52]} 14. Bxe5 {[%clk 0:02:35]}  h6 {[%clk 0:01:35]} 15. Qf3 {[%clk 0:02:34]}  Nd5 {[%clk 0:01:17]} 16. Nxd5 {[%clk 0:02:31]}  exd5 {[%clk 0:01:16]} 17. Qxd5 {[%clk 0:02:32]}  Qxd5 {[%clk 0:01:11]} 18. Bxd5 {[%clk 0:02:33]}  Rad8 {[%clk 0:00:47]} 19. Bxb7 {[%clk 0:02:31]}  f6 {[%clk 0:00:40]} 20. Bg3 {[%clk 0:02:28]}  Bd6 {[%clk 0:00:37]} 21. Bxd6 {[%clk 0:02:11]}  Rxd6 {[%clk 0:00:35]} 22. b3 {[%clk 0:02:12]}  f5 {[%clk 0:00:24]} 23. Re2 {[%clk 0:02:03]}  fxg4 {[%clk 0:00:22]} 24. hxg4 {[%clk 0:02:03]}  Rf4 {[%clk 0:00:20]} 25. f3 {[%clk 0:02:01]}  Rb6 {[%clk 0:00:18]} 26. Bd5+ {[%clk 0:01:59]}  Kh7 {[%clk 0:00:17]} 27. Rae1 {[%clk 0:01:58]}  a5 {[%clk 0:00:17]} 28. a4 {[%clk 0:01:55]}  Rff6 {[%clk 0:00:15]} 29. Re5 {[%clk 0:01:53]}  Rfd6 {[%clk 0:00:13]} 30. Be4 {[%clk 0:01:52]}  Bxe4 {[%clk 0:00:12]} 31. R1xe4 {[%clk 0:01:52]}  Rbc6 {[%clk 0:00:12]} 32. Rc4 {[%clk 0:01:52]}  Rf6 {[%clk 0:00:11]} 33. Kg2 {[%clk 0:01:52]}  Rfd6 {[%clk 0:00:07]} 34. Rexc5 {[%clk 0:01:51]}  Rxc5 {[%clk 0:00:06]} 35. Rxc5 {[%clk 0:01:51]}  Re6 {[%clk 0:00:07]} 36. Kg3 {[%clk 0:01:50]}  Re2 {[%clk 0:00:06]} 37. d4 {[%clk 0:01:49]}  Rd2 {[%clk 0:00:05]} 38. d5 {[%clk 0:01:50]}  Kg6 {[%clk 0:00:04]} 39. c4 {[%clk 0:01:49]}  Kf6 {[%clk 0:00:03]} 40. Rxa5 {[%clk 0:01:47]}  g5 {[%clk 0:00:03]} 41. Ra6+ {[%clk 0:01:47]}  Ke5 {[%clk 0:00:04]} 42. Rxh6 {[%clk 0:01:46]}  Rb2 {[%clk 0:00:04]} 43. Rg6 {[%clk 0:01:46]}  Rxb3 {[%clk 0:00:04]} 44. Rxg5+ {[%clk 0:01:46]}  Kd6 {[%clk 0:00:05]} 45. Rf5 {[%clk 0:01:43]}  Rb4 {[%clk 0:00:05]} 46. Rf4 {[%clk 0:01:43]}  Rxa4 {[%clk 0:00:04]} 47. g5 {[%clk 0:01:44]}  Ra7 {[%clk 0:00:04]} 48. g6 {[%clk 0:01:43]}  Rg7 {[%clk 0:00:04]} 49. Rf6+ {[%clk 0:01:42]}  Ke5 {[%clk 0:00:04]} 50. Re6+ {[%clk 0:01:43]}  Kd4 {[%clk 0:00:04]} 51. Re4+ {[%clk 0:01:39]}  Kc5 {[%clk 0:00:04]} 52. Rg4 {[%clk 0:01:40]}  Kd6 {[%clk 0:00:03]} 53. Kf4 {[%clk 0:01:37]}  Ke7 {[%clk 0:00:02]} 54. Ke5 {[%clk 0:01:35]}  Rg8 {[%clk 0:00:01]} 55. g7 {[%clk 0:01:32]}  Kf7 {[%clk 0:00:01]} 1-0


[Site "https://www.chess.com"]

[Event "Titled Tuesday Blitz July 25 Late 2023"]
[White "Liu, Casper"]
[Black "Floresvillar Gonzalez, Luis Migu"]
[WhiteFideId "1454153"]
[BlackFideId "5100542"]
[WhiteElo "2459"]
[BlackElo "2099"]
[Result "1-0"]
[Round "6"]
[TimeControl "180+2"]
[Date "2023.07.25"]
[WhiteClock "0:02:00"]
[BlackClock "0:00:46"]
[Board "161"]

1. e4 {[%clk 0:03:00]}  c6 {[%clk 0:02:57]} 2. d4 {[%clk 0:03:01]}  d5 {[%clk 0:02:56]} 3. Nc3 {[%clk 0:02:57]}  dxe4 {[%clk 0:02:55]} 4. Nxe4 {[%clk 0:02:58]}  Bf5 {[%clk 0:02:55]} 5. Ng3 {[%clk 0:02:54]}  Bg6 {[%clk 0:02:55]} 6. Bg5 {[%clk 0:02:47]}  h6 {[%clk 0:02:51]} 7. Bh4 {[%clk 0:02:41]}  Qb6 {[%clk 0:02:34]} 8. Bd3 {[%clk 0:02:13]}  Bxd3 {[%clk 0:02:31]} 9. Qxd3 {[%clk 0:02:13]}  Qxb2 {[%clk 0:02:21]} 10. Rd1 {[%clk 0:02:14]}  g5 {[%clk 0:02:20]} 11. Nf3 {[%clk 0:02:10]}  gxh4 {[%clk 0:02:16]} 12. Nxh4 {[%clk 0:02:11]}  e6 {[%clk 0:02:17]} 13. O-O {[%clk 0:02:11]}  Be7 {[%clk 0:02:12]} 14. Nhf5 {[%clk 0:02:07]}  exf5 {[%clk 0:02:07]} 15. Nxf5 {[%clk 0:02:08]}  Qxa2 {[%clk 0:02:01]} 16. Rfe1 {[%clk 0:02:07]}  Nd7 {[%clk 0:01:49]} 17. Qg3 {[%clk 0:02:02]}  O-O-O {[%clk 0:01:42]} 18. Rxe7 {[%clk 0:02:00]}  Nxe7 {[%clk 0:00:46]} 19. Nxe7# {[%clk 0:02:00]} 1-0


[Site "https://www.chess.com"]

[Event "Titled Tuesday Blitz July 25 Late 2023"]
[White "Chemin, Justo Reinaldo"]
[Black "Hartikainen, Jarmo"]
[WhiteFideId "2101580"]
[BlackFideId "503134"]
[WhiteElo "2247"]
[BlackElo "2077"]
[Result "1-0"]
[Round "6"]
[TimeControl "180+2"]
[Date "2023.07.25"]
[WhiteClock "0:00:14"]
[BlackClock "0:00:00"]
[Board "162"]

1. d4 {[%clk 0:03:00]}  d5 {[%clk 0:02:58]} 2. c4 {[%clk 0:03:00]}  e6 {[%clk 0:02:59]} 3. e3 {[%clk 0:02:59]}  Nf6 {[%clk 0:02:58]} 4. Nf3 {[%clk 0:02:59]}  Be7 {[%clk 0:02:57]} 5. Nc3 {[%clk 0:03:00]}  O-O {[%clk 0:02:56]} 6. a3 {[%clk 0:03:00]}  b6 {[%clk 0:02:54]} 7. cxd5 {[%clk 0:02:59]}  exd5 {[%clk 0:02:53]} 8. Bd3 {[%clk 0:02:58]}  Bb7 {[%clk 0:02:53]} 9. O-O {[%clk 0:02:54]}  Nbd7 {[%clk 0:02:52]} 10. b4 {[%clk 0:02:46]}  Ne4 {[%clk 0:02:51]} 11. Bxe4 {[%clk 0:02:43]}  dxe4 {[%clk 0:02:51]} 12. Nd2 {[%clk 0:02:43]}  f5 {[%clk 0:02:44]} 13. Bb2 {[%clk 0:02:43]}  Nf6 {[%clk 0:02:39]} 14. Rc1 {[%clk 0:02:43]}  a6 {[%clk 0:02:24]} 15. f3 {[%clk 0:02:33]}  Rc8 {[%clk 0:02:07]} 16. fxe4 {[%clk 0:02:29]}  fxe4 {[%clk 0:02:05]} 17. Nc4 {[%clk 0:02:12]}  c5 {[%clk 0:01:52]} 18. bxc5 {[%clk 0:02:09]}  bxc5 {[%clk 0:01:52]} 19. Ne5 {[%clk 0:01:58]}  cxd4 {[%clk 0:01:20]} 20. exd4 {[%clk 0:01:56]}  Bd5 {[%clk 0:01:08]} 21. Qa4 {[%clk 0:01:39]}  Kh8 {[%clk 0:00:13]} 22. Qxa6 {[%clk 0:01:09]}  Ra8 {[%clk 0:00:09]} 23. Qe2 {[%clk 0:00:58]}  Bxa3 {[%clk 0:00:09]} 24. Bxa3 {[%clk 0:00:57]}  Rxa3 {[%clk 0:00:09]} 25. Nxd5 {[%clk 0:00:54]}  Qxd5 {[%clk 0:00:09]} 26. Rcd1 {[%clk 0:00:44]}  Ra4 {[%clk 0:00:09]} 27. Qe3 {[%clk 0:00:36]}  Rd8 {[%clk 0:00:09]} 28. Qg5 {[%clk 0:00:30]}  Rc4 {[%clk 0:00:07]} 29. Rxf6 {[%clk 0:00:27]}  Rxd4 {[%clk 0:00:06]} 30. Nf7+ {[%clk 0:00:18]}  Kg8 {[%clk 0:00:06]} 31. Nh6+ {[%clk 0:00:15]}  Kh8 {[%clk 0:00:04]} 32. Qxd5 {[%clk 0:00:15]}  R4xd5 {[%clk 0:00:03]} 33. Rxd5 {[%clk 0:00:15]}  gxf6 {[%clk 0:00:03]} 34. Rxd8+ {[%clk 0:00:14]}  Kg7 {[%clk 0:00:04]} 35. Re8 {[%clk 0:00:14]}  Kxh6 {[%clk 0:00:04]} 36. Rxe4 {[%clk 0:00:14]}  Kg5 {[%clk 0:00:00]} 37. Re3 {[%clk 0:00:14]} 1-0


[Site "https://www.chess.com"]

[Event "Titled Tuesday Blitz July 25 Late 2023"]
[White "Coro, Lucas"]
[Black "Silvestre, Christian"]
[WhiteFideId "147222"]
[BlackFideId "30956269"]
[WhiteElo "2400"]
[BlackElo "2106"]
[Result "1-0"]
[Round "6"]
[TimeControl "180+2"]
[Date "2023.07.25"]
[WhiteClock "0:01:47"]
[BlackClock "0:01:52"]
[Board "163"]

1. e4 {[%clk 0:03:00]}  c6 {[%clk 0:02:59]} 2. Nf3 {[%clk 0:03:00]}  d5 {[%clk 0:03:00]} 3. d3 {[%clk 0:03:01]}  a6 {[%clk 0:03:00]} 4. Nc3 {[%clk 0:03:00]}  f6 {[%clk 0:03:00]} 5. d4 {[%clk 0:02:57]}  e6 {[%clk 0:02:57]} 6. Bd3 {[%clk 0:02:56]}  Bb4 {[%clk 0:02:56]} 7. O-O {[%clk 0:02:56]}  Ne7 {[%clk 0:02:56]} 8. Ne2 {[%clk 0:02:49]}  O-O {[%clk 0:02:54]} 9. c3 {[%clk 0:02:44]}  Bd6 {[%clk 0:02:54]} 10. e5 {[%clk 0:02:44]}  Bc7 {[%clk 0:02:54]} 11. exf6 {[%clk 0:02:43]}  gxf6 {[%clk 0:02:49]} 12. Bh6 {[%clk 0:02:39]}  Rf7 {[%clk 0:02:48]} 13. Nf4 {[%clk 0:02:17]}  e5 {[%clk 0:02:42]} 14. dxe5 {[%clk 0:02:17]}  fxe5 {[%clk 0:02:41]} 15. Ng5 {[%clk 0:02:06]}  exf4 {[%clk 0:02:16]} 16. Nxf7 {[%clk 0:02:05]}  Kxf7 {[%clk 0:02:16]} 17. Qh5+ {[%clk 0:02:00]}  Ng6 {[%clk 0:02:15]} 18. Rae1 {[%clk 0:01:49]}  Qf6 {[%clk 0:02:05]} 19. Bg5 {[%clk 0:01:49]}  Qh8 {[%clk 0:01:52]} 20. Re7+ {[%clk 0:01:47]} 1-0


[Site "https://www.chess.com"]

[Event "Titled Tuesday Blitz July 25 Late 2023"]
[White "Akhayan, Ruben"]
[Black "Sainz Aguirre, Ignacio"]
[WhiteFideId "204439"]
[BlackFideId "5101727"]
[WhiteElo "2253"]
[BlackElo "1961"]
[Result "1-0"]
[Round "6"]
[TimeControl "180+2"]
[Date "2023.07.25"]
[WhiteClock "0:00:34"]
[BlackClock "0:00:00"]
[Board "167"]

1. d4 {[%clk 0:02:59]}  d5 {[%clk 0:02:58]} 2. Nf3 {[%clk 0:02:59]}  e6 {[%clk 0:02:56]} 3. Bg5 {[%clk 0:02:58]}  Be7 {[%clk 0:02:52]} 4. Bxe7 {[%clk 0:02:57]}  Nxe7 {[%clk 0:02:52]} 5. e3 {[%clk 0:02:57]}  c5 {[%clk 0:02:51]} 6. c3 {[%clk 0:02:57]}  Qb6 {[%clk 0:02:49]} 7. b3 {[%clk 0:02:54]}  Nbc6 {[%clk 0:02:47]} 8. Bd3 {[%clk 0:02:54]}  h6 {[%clk 0:02:45]} 9. Nbd2 {[%clk 0:02:52]}  cxd4 {[%clk 0:02:38]} 10. exd4 {[%clk 0:02:50]}  Bd7 {[%clk 0:02:31]} 11. Qe2 {[%clk 0:02:49]}  O-O {[%clk 0:02:28]} 12. O-O {[%clk 0:02:41]}  Rac8 {[%clk 0:02:25]} 13. Ne5 {[%clk 0:02:16]}  Nxe5 {[%clk 0:02:21]} 14. dxe5 {[%clk 0:02:16]}  Rxc3 {[%clk 0:02:20]} 15. Rad1 {[%clk 0:02:06]}  Rfc8 {[%clk 0:02:07]} 16. Rfe1 {[%clk 0:02:01]}  a6 {[%clk 0:01:57]} 17. h4 {[%clk 0:01:59]}  Bb5 {[%clk 0:01:50]} 18. Bxb5 {[%clk 0:01:56]}  Qxb5 {[%clk 0:01:47]} 19. Qxb5 {[%clk 0:01:54]}  axb5 {[%clk 0:01:47]} 20. Nf3 {[%clk 0:01:54]}  Rc2 {[%clk 0:01:44]} 21. Nd4 {[%clk 0:01:36]}  Rxa2 {[%clk 0:01:42]} 22. Nxb5 {[%clk 0:01:37]}  Rcc2 {[%clk 0:01:42]} 23. Rf1 {[%clk 0:01:35]}  Ng6 {[%clk 0:01:32]} 24. Nd4 {[%clk 0:01:31]}  Rd2 {[%clk 0:01:28]} 25. Nf3 {[%clk 0:01:30]}  Rxd1 {[%clk 0:01:27]} 26. Rxd1 {[%clk 0:01:30]}  Re2 {[%clk 0:01:20]} 27. Rc1 {[%clk 0:01:25]}  Nxe5 {[%clk 0:01:18]} 28. Rc8+ {[%clk 0:01:23]}  Kh7 {[%clk 0:01:17]} 29. Nxe5 {[%clk 0:01:19]}  Rxe5 {[%clk 0:01:17]} 30. Rc7 {[%clk 0:01:19]}  Re1+ {[%clk 0:01:13]} 31. Kh2 {[%clk 0:01:19]}  d4 {[%clk 0:01:07]} 32. Rxb7 {[%clk 0:01:16]}  e5 {[%clk 0:01:04]} 33. Rd7 {[%clk 0:01:15]}  Rb1 {[%clk 0:01:03]} 34. Rxf7 {[%clk 0:01:13]}  Rxb3 {[%clk 0:01:02]} 35. Re7 {[%clk 0:01:10]}  Rb5 {[%clk 0:01:02]} 36. Kg3 {[%clk 0:01:09]}  Rd5 {[%clk 0:01:02]} 37. Rc7 {[%clk 0:01:00]}  e4 {[%clk 0:00:54]} 38. Kf4 {[%clk 0:01:00]}  d3 {[%clk 0:00:53]} 39. Rc1 {[%clk 0:00:59]}  Rd4 {[%clk 0:00:46]} 40. Ke3 {[%clk 0:00:57]}  Ra4 {[%clk 0:00:43]} 41. g3 {[%clk 0:00:52]}  Kg6 {[%clk 0:00:40]} 42. f3 {[%clk 0:00:50]}  exf3 {[%clk 0:00:33]} 43. Kxf3 {[%clk 0:00:44]}  d2 {[%clk 0:00:26]} 44. Rd1 {[%clk 0:00:44]}  Rd4 {[%clk 0:00:26]} 45. Ke3 {[%clk 0:00:44]}  Rd7 {[%clk 0:00:25]} 46. Rxd2 {[%clk 0:00:43]}  Rxd2 {[%clk 0:00:25]} 47. Kxd2 {[%clk 0:00:43]}  Kf5 {[%clk 0:00:23]} 48. Ke3 {[%clk 0:00:43]}  Kg4 {[%clk 0:00:23]} 49. Kf2 {[%clk 0:00:43]}  Kh3 {[%clk 0:00:19]} 50. Kf3 {[%clk 0:00:43]}  g6 {[%clk 0:00:18]} 51. Kf4 {[%clk 0:00:40]}  g5+ {[%clk 0:00:16]} 52. hxg5 {[%clk 0:00:40]}  hxg5+ {[%clk 0:00:16]} 53. Kf3 {[%clk 0:00:34]}  g4+ {[%clk 0:00:00]} 54. Kf4 {[%clk 0:00:34]} 1-0


[Site "https://www.chess.com"]